fUST/lending_fUST_20240523
["ID","MTS","AMOUNT","RATE_DAILY","PERIOD"]
[327769745,1716462644627,-500.0,0.00026484,2]
[327769746,1716462644637,-500.0,0.00026484,2]
[327769747,1716462644647,-500.0,0.00026484,2]
[327769748,1716462644657,-326.17533098,0.00026484,2]
[327769749,1716462644668,-500.0,0.00026484,2]
[327769750,1716462644679,-165.17945306,0.00026484,2]
[327769751,1716462644689,-500.0,0.00026484,2]
[327769752,1716462644704,-508.82569417,0.00026484,2]
[327769753,1716462644714,-500.0,0.00026484,2]
[327769754,1716462644724,-500.0,0.00026484,2]
[327769755,1716462644734,-500.0,0.00026484,2]
[327769756,1716462644745,-500.0,0.00026484,2]
[327769757,1716462644755,-500.0,0.00026484,2]
[327769758,1716462644765,-580.46456792,0.00026484,2]
[327769759,1716462644775,-500.0,0.00026484,2]
[327769760,1716462644785,-500.0,0.00026484,2]
[327769761,1716462644795,-297.13910979,0.00026484,2]
[327769762,1716462644806,-500.0,0.00026484,2]
[327769763,1716462644816,-500.0,0.00026484,2]
[327769764,1716462644827,-500.0,0.00026484,2]
[327769765,1716462644839,-500.0,0.00026484,2]
[327769766,1716462644849,-500.0,0.00026484,2]
[327769767,1716462644859,-500.0,0.00026484,2]
[327769768,1716462644871,-500.0,0.00026484,2]
[327769769,1716462644882,-500.0,0.00026484,2]
[327769770,1716462644891,-500.0,0.00026484,2]
[327769771,1716462644901,-500.0,0.00026484,2]
[327769772,1716462644914,-500.0,0.00026484,2]
[327769773,1716462644925,-500.0,0.00026484,2]
[327769774,1716462644934,-500.0,0.00026484,2]
[327769775,1716462644945,-500.0,0.00026484,2]
[327769776,1716462644954,-500.0,0.00026484,2]
[327769777,1716462644965,-500.0,0.00026484,2]
[327769778,1716462644975,-500.0,0.00026484,2]
[327769779,1716462644985,-500.0,0.00026484,2]
[327769780,1716462644996,-500.0,0.00026484,2]
[327769781,1716462645006,-500.0,0.00026484,2]
[327769782,1716462645016,-540.24327306,0.00026484,2]
[327769783,1716462645026,-500.0,0.00026484,2]
[327769784,1716462645035,-3105.76908868,0.00026485,11]
[327769785,1716462645045,-8712.35,0.0002649,3]
[327769786,1716462645055,-162.560857,0.00026498,2]
[327769787,1716462645065,-1414.46359906,0.00026498,2]
[327769807,1716462646579,-3585.43732911,0.00026498,2]
[327769808,1716462646589,-8704.32303592,0.000265,11]
[327769809,1716462646599,-87714.36396497,0.000265,2]
[327769810,1716462646903,-7080.33473363,0.000265,2]
[327769811,1716462646917,-561.88800379,0.000265,2]
[327769815,1716462651841,3980.09499401,0.00021,2]
[327769816,1716462651868,1580.78373122,0.0002,2]
[327769817,1716462667836,947.88285164,0.00021,2]
[327769886,1716463230375,8362.22834685,0.00019931,7]
[327769887,1716463246314,1562.57088569,0.00019931,7]
[327769888,1716463265298,1718.07825249,9.999e-05,2]
[327769889,1716463285171,283.77206656,0.000137,2]
[327769890,1716463297272,1552.88454434,0.0001993,11]
[327769892,1716463412957,776.44227218,0.0001993,11]
[327769893,1716463516628,154.98450155,9.999e-05,2]
[327769894,1716463537018,388.22113609,0.0001993,11]
[327769930,1716463657057,194.11056804,0.00019852,11]
[327769931,1716463687635,273.37336231,9.9e-05,2]
[327769932,1716463696713,273.37336231,9.9e-05,2]
[327769933,1716463706584,273.37336231,9.9e-05,2]
[327769936,1716463767302,-430.89855565,0.00016803,2]
[327769937,1716463767322,-9403.91722042,0.00016875,2]
[327769938,1716463767515,-28847.36556823,0.00016876,2]
[327769939,1716463767542,-59429.50731458,0.00016877,2]
[327769940,1716463767563,-24900.0,0.00016878,2]
[327769941,1716463767583,-1281.8440387,0.00016903,2]
[327769942,1716463767603,-903.52706,0.00017729,2]
[327769943,1716463767622,-193.12953934,0.00017804,2]
[327769944,1716463767642,-153.1043383,0.00017805,2]
[327769945,1716463767664,-516.81504331,0.00017901,2]
[327769946,1716463767684,-10457.73347478,0.00017901,2]
[327769947,1716463767703,-1588.99256483,0.00017901,2]
[327769948,1716463767723,-209.27000577,0.00017902,2]
[327769949,1716463767744,-687.59950096,0.00017902,2]
[327769950,1716463767763,-12479.8133937,0.00017905,2]
[327769951,1716463767785,-250.0,0.00018481,2]
[327769952,1716463767804,-1143.36406491,0.00018601,2]
[327769953,1716463767824,-449.49829632,0.000189,2]
[327769955,1716463785026,1143.36406491,0.00018,2]
[327769957,1716463807839,273.37336231,9.9e-05,2]
[327770013,1716463838795,-270.06099238,0.00018932,2]
[327770014,1716463838806,-527.29134059,0.00018936,2]
[327770016,1716463838816,-37.25971947,0.00019177,2]
[327770021,1716463839412,-125.3567016,0.00019177,2]
[327770022,1716463839423,-175.354587,0.00019178,2]
[327770023,1716463839433,-168.14861,0.00019178,2]
[327770024,1716463839443,-228.6001014,0.00019672,2]
[327770074,1716463843846,-90.84414668,0.00019672,2]
[327770076,1716463843856,-3170.31373618,0.00019852,2]
[327770078,1716463843868,-8787.1368537,0.00019852,2]
[327770079,1716463843878,-174.70358561,0.00019926,2]
[327770080,1716463843888,-1058.61544524,0.00019927,2]
[327770081,1716463843898,-500.0,0.00019927,2]
[327770082,1716463843908,-500.0,0.00019927,2]
[327770083,1716463843918,-500.0,0.00019927,2]
[327770084,1716463843929,-500.0,0.00019927,2]
[327770085,1716463843939,-565.4548896,0.00019927,2]
[327770086,1716463843949,-57196.61122584,0.00019928,2]
[327770089,1716463843967,-1574.4446181,0.00019928,2]
[327770090,1716463843983,-5646.00094722,0.00019928,2]
[327770119,1716463844301,-930.58349256,0.00019928,2]
[327770121,1716463844315,-161.88303568,0.00019929,2]
[327770123,1716463844326,-1006.52652216,0.0001993,2]
[327770125,1716463844336,-303.12637776,0.00019931,2]
[327770127,1716463844347,-155.24956511,0.00019931,2]
[327770129,1716463844358,-155.36778921,0.00019931,2]
[327770131,1716463844368,-155.02790502,0.00019931,2]
[327770133,1716463844377,-32.46489194,0.00019931,2]
[327770237,1716463847224,-536.66828058,0.00019931,2]
[327770240,1716463847235,-1184.75058022,0.00019931,2]
[327770246,1716463991233,488.03965703,9.999e-05,2]
[327770253,1716464253211,425.42862128,0.0002,11]
[327770267,1716464373054,212.71431064,0.0001993,11]
[327770270,1716464492292,2525.39931489,0.0002,11]
[327770271,1716464492317,5380.36019735,0.0002,11]
[327770272,1716464492948,212.71431063,0.0001993,11]
[327770273,1716464552056,3952.87975612,0.0002,11]
[327770275,1716464604255,345.01,0.00025,60]
[327770277,1716464610360,1976.43987807,0.0002,11]
[327770278,1716464673153,988.21993903,0.0002,11]
[327770317,1716464733909,494.10996951,0.0002,11]
[327770335,1716464790386,247.05498476,0.0002,11]
[327770336,1716464802901,-187.71376422,0.0002,4]
[327770337,1716464832136,-330.42851345,0.000176,2]
[327770338,1716464832158,-250.0,0.00017667,2]
[327770339,1716464832177,-451.76353,0.00017871,2]
[327770340,1716464832197,-1974.6041569,0.00017918,2]
[327770341,1716464832218,-153.10433829,0.00018866,2]
[327770342,1716464832238,-461.95466565,0.000189,2]
[327770343,1716464832259,-37277.50797139,0.00018963,2]
[327770347,1716464855177,2330.40340908,0.00019995,11]
[327770348,1716464913291,247.05498475,0.0002,11]
[327770349,1716464918994,331.14504532,9.999e-05,2]
[327770350,1716464921856,154.98450155,9.999e-05,2]
[327770351,1716464928682,158.6138811,9.999e-05,2]
[327770352,1716464929876,371.36887214,9.999e-05,2]
[327770353,1716464930046,291.89305778,9.999e-05,2]
[327770354,1716464939143,154.98450155,9.999e-05,2]
[327770355,1716464950538,703.00507504,9.999e-05,2]
[327770356,1716464953387,174.70358561,9.999e-05,2]
[327770357,1716464954003,425.01492755,0.00013516,2]
[327770358,1716464957730,455.69136841,9.999e-05,2]
[327770359,1716464973402,170.7625707,0.00019995,11]
[327770360,1716464973425,8533.56046522,0.00019995,11]
[327770361,1716464974820,156.4986066,9.999e-05,2]
[327770421,1716465032139,-383.7998292,0.00014997,2]
[327770424,1716465032154,-1514.95252074,0.00014997,2]
[327770426,1716465032164,-214.94749156,0.00014998,2]
[327770428,1716465032173,-1046.52092415,0.00014998,2]
[327770430,1716465032182,-6054.04544148,0.00014998,2]
[327770432,1716465032194,-5756.75407223,0.00014998,2]
[327770435,1716465032218,-44055.77563372,0.00014998,2]
[327770459,1716465037802,-496.8929998,0.00014998,2]
[327770461,1716465037815,-350.6,0.00014998,2]
[327770485,1716465040790,-2715.43916735,0.00014998,2]
[327770486,1716465040800,-319.17124919,0.00014999,2]
[327770487,1716465040810,-9403.91722042,0.00014999,2]
[327770488,1716465040819,-1149.80442336,0.00015,2]
[327770489,1716465040829,-14406.86793965,0.00015,2]
[327770490,1716465041027,-13645.90156971,0.00015,2]
[327770491,1716465041039,-154.98450155,0.00015,2]
[327770492,1716465041049,-190.02760697,0.000156,2]
[327770493,1716465041058,-154.98450155,0.000165,2]
[327770494,1716465041068,-193.54836123,0.00018019,2]
[327770495,1716465041077,-253.88272312,0.00018019,2]
[327770496,1716465041086,-804.72182729,0.00018019,2]
[327770497,1716465041096,-290.67022084,0.00018021,2]
[327770498,1716465041104,-264.8105875,0.00018021,2]
[327770499,1716465041114,-309.90214043,0.00018021,2]
[327770500,1716465041123,-225.2019156,0.00018021,2]
[327770557,1716465043208,-12.88697501,0.00018021,2]
[327770558,1716465043218,-269.22609529,0.00018023,2]
[327770559,1716465043228,-155.73211763,0.00018023,2]
[327770560,1716465043238,-304.23125226,0.00018023,2]
[327770561,1716465043248,-231.70060982,0.00018023,2]
[327770562,1716465043258,-593.34019342,0.00018023,2]
[327770563,1716465043268,-1450.80884896,0.00018023,2]
[327770564,1716465043278,-225.08647525,0.00018023,2]
[327770565,1716465043290,-156.49059254,0.00018023,2]
[327770566,1716465043300,-231.15046877,0.00018023,2]
[327770567,1716465043310,-684.8282798,0.00018023,2]
[327770569,1716465043319,-6421.35051544,0.00018023,2]
[327770570,1716465043329,-941.9818398,0.00018023,2]
[327770571,1716465043339,-155.48808748,0.00018023,2]
[327770572,1716465043348,-179.4371751,0.00018023,2]
[327770573,1716465043357,-311.06188201,0.00018023,2]
[327770574,1716465043366,-160.65360869,0.00018023,2]
[327770575,1716465043376,-720.11009845,0.00018023,2]
[327770576,1716465043387,-2409.46411037,0.00018023,2]
[327770578,1716465043398,-263.67559899,0.00018023,2]
[327770579,1716465043408,-155.251382,0.00018023,2]
[327770580,1716465043418,-209.61507021,0.00018023,2]
[327770582,1716465043428,-774.27872381,0.00018023,2]
[327770584,1716465043438,-285.733402,0.00018023,2]
[327770585,1716465043447,-528.58408282,0.00018023,2]
[327770586,1716465043457,-248.67424405,0.00018023,2]
[327770587,1716465043467,-9565.39129941,0.00018027,2]
[327770594,1716465081347,410.70803407,9.999e-05,2]
[327770595,1716465092460,4352.16151797,0.0002,11]
[327770596,1716465153120,2176.08075898,0.0002,11]
[327770598,1716465213194,938.19725783,0.0002,11]
[327770599,1716465213229,149.84312166,0.0002,11]
[327770601,1716465272278,544.02018974,0.0002,11]
[327770602,1716465333316,272.01009487,0.0002,11]
[327770603,1716465392275,272.01009487,0.0002,11]
[327770607,1716465801145,273.37336231,9.9e-05,2]
[327770608,1716465809649,273.37336231,9.9e-05,2]
[327770610,1716465915153,155.0,9.405e-05,2]
[327770611,1716465935103,168.06928087,8.935e-05,2]
[327770614,1716466111965,921.59746987,0.00014,2]
[327770663,1716466232207,-155.04341216,0.00015,2]
[327770665,1716466232216,-215.44927783,0.00015031,2]
[327770666,1716466232226,-215.44927782,0.00015032,2]
[327770668,1716466232237,-7898.38075199,0.00015129,2]
[327770669,1716466232246,-1216.0772802,0.0001513,2]
[327770670,1716466232262,-3885.45339507,0.0001513,2]
[327770671,1716466232274,-4302.38654515,0.0001513,2]
[327770672,1716466232285,-2467.58422736,0.0001513,2]
[327770673,1716466232295,-314.51323154,0.00015133,2]
[327770674,1716466232305,-187.4152181,0.00015514,2]
[327770675,1716466232315,-250.0,0.00015548,2]
[327770676,1716466232325,-225.881765,0.00015568,2]
[327770677,1716466232335,-217.37664298,0.0001593,2]
[327770678,1716466232345,-1019.25132005,0.00015931,2]
[327770717,1716466238048,-23880.74867995,0.00015931,2]
[327770719,1716466238058,-155.0,0.000165,2]
[327770721,1716466238067,-288.2118729,0.00017847,2]
[327770723,1716466238077,-159.78239314,0.00017922,2]
[327770725,1716466238087,-201.73850881,0.00017926,2]
[327770727,1716466238096,-1892.71418949,0.00018021,2]
[327770729,1716466238111,-6055.43036051,0.00018021,2]
[327770731,1716466238121,-216.20540221,0.00018022,2]
[327770733,1716466238131,-1167.95174527,0.00018022,2]
[327770735,1716466238143,-261.10630803,0.00018022,2]
[327770737,1716466238153,-211.9163094,0.00018025,2]
[327770740,1716466238164,-217.53237512,0.00018025,2]
[327770742,1716466238173,-7600.75592688,0.00018026,2]
[327770744,1716466238186,-574.33852,0.00018026,2]
[327770748,1716466238214,-619.18775379,0.00018026,2]
[327770816,1716466243412,-2822.40981283,0.00018026,2]
[327770818,1716466243425,-451.94899088,0.00018026,2]
[327770821,1716466243445,-159.78239311,0.0001858,2]
[327770822,1716466243456,-1143.36406491,0.00018735,2]
[327770823,1716466243465,-4225.76789331,0.00018814,2]
[327770824,1716466243475,-417.48839794,0.00018854,2]
[327770825,1716466243485,-307.9697771,0.000189,2]
[327770826,1716466243495,-12174.94951858,0.00018964,2]
[327770828,1716466243504,-162.61642107,0.00019,2]
[327770830,1716466243515,-639.92,0.00019168,3]
[327770832,1716466243530,-159.98,0.00019168,3]
[327770834,1716466243539,-210.56724356,0.00019176,2]
[327770836,1716466243549,-181.49361007,0.00019176,2]
[327770838,1716466243558,-2534.09429428,0.00019176,2]
[327770841,1716466243567,-190.53274145,0.00019177,2]
[327770844,1716466243577,-1231.39243065,0.00019177,2]
[327770845,1716466243586,-488.42751085,0.00019177,2]
[327770847,1716466243595,-285.05054329,0.00019178,2]
[327770849,1716466243605,-314.80282278,0.00019178,2]
[327770851,1716466243615,-500.0,0.00019178,2]
[327770853,1716466243625,-500.0,0.00019178,2]
[327770855,1716466243635,-500.0,0.00019178,2]
[327770857,1716466243645,-500.0,0.00019178,2]
[327770859,1716466243656,-201.21013524,0.00019178,2]
[327770861,1716466243666,-500.0,0.00019178,2]
[327770862,1716466243848,-500.0,0.00019178,2]
[327770863,1716466243858,-504.11685357,0.00019178,2]
[327770864,1716466243867,-645.57896554,0.00019178,2]
[327770865,1716466243876,-500.0,0.00019178,2]
[327770866,1716466243885,-408.50630545,0.00019178,2]
[327770867,1716466243895,-500.0,0.00019178,2]
[327770868,1716466243905,-328.82164027,0.00019178,2]
[327770869,1716466243915,-515.99371115,0.00019178,2]
[327770870,1716466243925,-532.80425465,0.00019178,2]
[327770871,1716466243934,-820.34014387,0.00019178,2]
[327770872,1716466243944,-500.0,0.00019178,2]
[327770873,1716466243954,-500.0,0.00019178,2]
[327770874,1716466243964,-820.34014387,0.00019178,2]
[327770875,1716466243973,-500.0,0.00019178,2]
[327770876,1716466243983,-820.34014387,0.00019178,2]
[327770877,1716466243993,-500.0,0.00019178,2]
[327770878,1716466244002,-500.0,0.00019178,2]
[327770879,1716466244013,-820.34014387,0.00019178,2]
[327770880,1716466244025,-424.09587375,0.00019178,2]
[327770881,1716466244038,-500.0,0.00019178,2]
[327770882,1716466244049,-250.45771768,0.00019178,2]
[327770883,1716466244058,-820.34014387,0.00019178,2]
[327770884,1716466244067,-500.0,0.00019178,2]
[327770885,1716466244079,-820.34014387,0.00019178,2]
[327770886,1716466244088,-820.34014387,0.00019178,2]
[327770887,1716466244097,-820.34014387,0.00019178,2]
[327770888,1716466244106,-500.0,0.00019178,2]
[327770889,1716466244118,-820.34014387,0.00019178,2]
[327770890,1716466244128,-820.34014387,0.00019178,2]
[327770891,1716466244137,-500.0,0.00019178,2]
[327770892,1716466244147,-820.34014387,0.00019178,2]
[327770893,1716466244156,-820.34014387,0.00019178,2]
[327770894,1716466244165,-500.0,0.00019178,2]
[327770895,1716466244175,-820.34014387,0.00019178,2]
[327770896,1716466244184,-263.39831861,0.00019178,2]
[327770897,1716466244198,-311.20545213,0.00019178,2]
[327770898,1716466244210,-245.73637313,0.00019178,2]
[327770899,1716466244220,-820.34014387,0.00019178,2]
[327770900,1716466244234,-500.0,0.00019178,2]
[327770901,1716466244244,-820.34014387,0.00019178,2]
[327770902,1716466244254,-820.34014387,0.00019178,2]
[327770903,1716466244264,-820.34014387,0.00019178,2]
[327770904,1716466244277,-820.34014387,0.00019178,2]
[327770905,1716466244286,-820.34014387,0.00019178,2]
[327770906,1716466244296,-820.34014387,0.00019178,2]
[327770907,1716466244306,-820.34014387,0.00019178,2]
[327770908,1716466244316,-820.34014387,0.00019178,2]
[327770909,1716466244326,-820.34014387,0.00019178,2]
[327770910,1716466244336,-820.34014387,0.00019178,2]
[327770911,1716466244346,-820.34014387,0.00019178,2]
[327770912,1716466244356,-820.34014387,0.00019178,2]
[327770913,1716466244366,-820.34014387,0.00019178,2]
[327770914,1716466244376,-820.34014387,0.00019178,2]
[327770915,1716466244386,-820.34014387,0.00019178,2]
[327770916,1716466244397,-820.34014387,0.00019178,2]
[327770917,1716466244407,-820.34014387,0.00019178,2]
[327770918,1716466244417,-820.34014387,0.00019178,2]
[327770919,1716466244428,-310.13951891,0.00019178,2]
[327770920,1716466244495,-2510.22924629,0.00018025,2]
[327770921,1716466244505,-510.20062496,0.00019178,2]
[327770922,1716466244515,-820.34014387,0.00019178,2]
[327770923,1716466244529,-820.34014387,0.00019178,2]
[327770924,1716466244538,-820.34014387,0.00019178,2]
[327770925,1716466244548,-52.6944894,0.00019178,2]
[327770960,1716466250440,1582.29207805,9.999e-05,2]
[327770961,1716466275124,523.92930467,9.999e-05,2]
[327770962,1716466292678,6063.24653288,0.00019539,11]
[327770966,1716466318290,488.03965703,9.999e-05,2]
[327771036,1716466413140,3031.62326644,0.0001993,11]
[327771070,1716466673706,799.94,0.00010959,2]
[327771073,1716467125698,5667.24669954,0.00018,7]
[327771074,1716467134674,763.19132691,9.999e-05,2]
[327771075,1716467304978,1194.0,0.00023,30]
[327771076,1716467309550,273.37336231,9.9e-05,2]
[327771077,1716467329581,684.99447314,9.999e-05,2]
[327771141,1716467433007,-228.10644859,0.00015922,2]
[327771142,1716467433017,-179.28841926,0.00015923,2]
[327771143,1716467433027,-1588.99256483,0.00016019,2]
[327771144,1716467433036,-209.27000577,0.00016019,2]
[327771145,1716467433046,-687.43330762,0.00016019,2]
[327771146,1716467433056,-516.81504331,0.0001602,2]
[327771147,1716467433065,-1868.78287298,0.00016021,2]
[327771148,1716467433076,-1131.52059472,0.00016021,2]
[327771149,1716467433088,-31956.38103369,0.00016021,2]
[327771150,1716467433098,-155.17989353,0.00016022,2]
[327771152,1716467433106,-14756.43228611,0.00016022,2]
[327771154,1716467433115,-3997.5122205,0.00016023,2]
[327771156,1716467433125,-4253.10586805,0.00016025,2]
[327771159,1716467433145,-703.7636435,0.00016025,2]
[327771218,1716467438398,-253.98499995,0.00016023,2]
[327771220,1716467438410,-1027.85903875,0.00016023,2]
[327771222,1716467438419,-564.704413,0.00016023,2]
[327771224,1716467438430,-159.38754778,0.00016025,2]
[327771243,1716467438608,-3941.3,0.00016025,2]
[327771245,1716467438619,-1790.00061627,0.00016025,2]
[327771289,1716467443505,-6217.36933301,0.00016025,2]
[327771301,1716467443583,-7835.07299139,0.00016025,2]
[327771303,1716467443598,-155.0,0.000165,2]
[327771305,1716467443608,-179.28841926,0.000169,2]
[327771306,1716467443618,-155.00775523,0.00017063,2]
[327771308,1716467443627,-155.03720893,0.00017063,2]
[327771310,1716467443637,-155.18529668,0.00017063,2]
[327771311,1716467443646,-155.12766967,0.00017064,2]
[327771313,1716467443656,-30518.17290547,0.00017066,2]
[327771353,1716467461874,1834.64553491,9.999e-05,2]
[327771354,1716467469560,154.98450155,9.999e-05,2]
[327771355,1716467470156,1339.6886208,9.999e-05,2]
[327771356,1716467480021,9403.91722042,0.0001,2]
[327771357,1716467503419,-1685.22821807,0.00015,2]
[327771358,1716467503452,-1350.72680674,0.00017065,2]
[327771359,1716467503474,-6525.29497519,0.00017065,2]
[327771361,1716467507756,629.79318869,9.999e-05,2]
[327771362,1716467508681,215.80606168,9.999e-05,2]
[327771366,1716467531636,-254.07575975,0.00017062,2]
[327771367,1716467531657,-154.98450155,0.00017062,2]
[327771368,1716467531679,-987.21861522,0.00017063,2]
[327771369,1716467531701,-158.56849578,0.00017063,2]
[327771370,1716467531722,-9564.52432083,0.00017063,2]
[327771371,1716467531743,-1514.42830687,0.00017064,2]
[327771372,1716467549406,703.00507504,9.999e-05,2]
[327771373,1716467579566,356.48,0.00010959,2]
[327771374,1716467597219,-684.99447314,0.00016411,2]
[327771375,1716467597241,-20084.80552686,0.00016412,2]
[327771380,1716467903526,-250.0,0.00016209,2]
[327771381,1716467903554,-4799.34,0.00016412,2]
[327771382,1716467939132,-15.85447314,0.00016412,2]
[327771383,1716467939159,-2648.08798304,0.00016965,2]
[327771385,1716468032652,477.9246497,0.00016965,2]
[327771386,1716468048050,3773.02289412,0.00016343,2]
[327771448,1716468633794,-1974.6041569,0.00015463,2]
[327771449,1716468633804,-2149.09125409,0.00015963,2]
[327771450,1716468633814,-446.24787639,0.00015963,2]
[327771451,1716468633826,-282.352206,0.00015989,2]
[327771452,1716468633835,-44755.84930652,0.00016062,2]
[327771453,1716468633845,-5906.63426967,0.00016063,2]
[327771487,1716468638821,-6573.17912403,0.00016063,2]
[327771488,1716468638831,-21126.97710588,0.00016343,2]
[327771490,1716468638840,-2149.09125406,0.00016742,2]
[327771492,1716468638850,-417.48839794,0.0001688,2]
[327771494,1716468638862,-4225.76789331,0.00016961,2]
[327771496,1716468638871,-522.78148972,0.00017062,2]
[327771498,1716468638880,-8827.99537719,0.00017062,2]
[327771500,1716468638889,-154.98450155,0.00017062,2]
[327771502,1716468638899,-390.21114655,0.00017062,2]
[327771504,1716468638908,-684.58542188,0.00017062,2]
[327771506,1716468638918,-2434.22228286,0.00017062,2]
[327771508,1716468638927,-8701.01094129,0.00017063,2]
[327771510,1716468638936,-30529.9123748,0.00017064,2]
[327771512,1716468638947,-2149.09125406,0.00017521,2]
[327771514,1716468638957,-1639.43390128,0.000176,2]
[327771516,1716468638967,-190.03349228,0.00017896,2]
[327771518,1716468638976,-230.7938986,0.00017897,2]
[327771520,1716468638986,-154.98952481,0.00017897,2]
[327771522,1716468638996,-299.04306279,0.00017897,2]
[327771524,1716468639006,-10457.73347478,0.00017898,2]
[327771526,1716468639016,-2693.48406971,0.00018,7]
[327771528,1716468639025,-1143.36406491,0.00018,2]
[327771530,1716468639035,-2149.09125406,0.00018299,2]
[327771532,1716468639044,-446.24787636,0.00018756,2]
[327771534,1716468639053,-151.0,0.000189,2]
[327771536,1716468639063,-151.0,0.000189,2]
[327771538,1716468639072,-350.504285,0.000189,2]
[327771540,1716468639082,-350.504285,0.000189,2]
[327771542,1716468639091,-151.0,0.000189,2]
[327771544,1716468639101,-1953.57768862,0.000189,2]
[327771546,1716468639110,-509.83734,0.000189,2]
[327771548,1716468639120,-509.83734,0.000189,2]
[327771550,1716468639130,-255.31941,0.000189,2]
[327771552,1716468639140,-255.31941,0.000189,2]
[327771554,1716468639150,-570.02051254,0.00018986,2]
[327771556,1716468639159,-162.61642107,0.00019,2]
[327771558,1716468639169,-2149.09125406,0.00019078,2]
[327771560,1716468639178,-151.0,0.00019114,2]
[327771577,1716468639324,-151.0,0.00019114,2]
[327771580,1716468639340,-194.5093511,0.00019174,2]
[327771582,1716468639350,-189.52288998,0.00019174,2]
[327771584,1716468639359,-297.52885004,0.00019175,2]
[327771586,1716468639369,-528.62113532,0.00019176,2]
[327771588,1716468639378,-155.01550155,0.00019176,2]
[327771589,1716468639387,-605.21986445,0.00019176,2]
[327771592,1716468639397,-181.49361007,0.00019176,2]
[327771593,1716468639406,-309.74719962,0.00019176,2]
[327771596,1716468639415,-719.9433956,0.00019176,2]
[327771597,1716468639425,-2832.60767796,0.00019176,2]
[327771600,1716468639435,-186.88314429,0.00019176,2]
[327771602,1716468639444,-285.09281937,0.00019176,2]
[327771604,1716468639453,-207.44455215,0.00019176,2]
[327771606,1716468639463,-184.42856408,0.00019176,2]
[327771607,1716468639475,-1898.47491461,0.00019176,2]
[327771609,1716468639485,-582.57178381,0.00019176,2]
[327771612,1716468639494,-1717.62384614,0.00019177,2]
[327771613,1716468639505,-500.0,0.00019178,2]
[327771616,1716468639514,-387.51808485,0.00019178,2]
[327771618,1716468639524,-500.0,0.00019178,2]
[327771620,1716468639533,-500.0,0.00019178,2]
[327771622,1716468639543,-276.67669951,0.00019178,2]
[327771624,1716468639552,-509.84127639,0.00019178,2]
[327771626,1716468639562,-500.0,0.00019178,2]
[327771628,1716468639572,-500.0,0.00019178,2]
[327771630,1716468639581,-500.0,0.00019178,2]
[327771632,1716468639591,-500.0,0.00019178,2]
[327771633,1716468639601,-620.93134492,0.00019178,2]
[327771634,1716468639610,-500.0,0.00019178,2]
[327771635,1716468639618,-500.0,0.00019178,2]
[327771636,1716468639627,-500.0,0.00019178,2]
[327771637,1716468639637,-500.0,0.00019178,2]
[327771638,1716468639646,-250.0,0.00019178,2]
[327771639,1716468639655,-500.0,0.00019178,2]
[327771640,1716468639663,-500.0,0.00019178,2]
[327771641,1716468639673,-500.0,0.00019178,2]
[327771642,1716468639682,-500.0,0.00019178,2]
[327771643,1716468639691,-500.0,0.00019178,2]
[327771644,1716468639700,-500.0,0.00019178,2]
[327771645,1716468639710,-500.0,0.00019178,2]
[327771646,1716468639720,-500.0,0.00019178,2]
[327771647,1716468639729,-500.0,0.00019178,2]
[327771648,1716468639738,-500.0,0.00019178,2]
[327771649,1716468639747,-500.0,0.00019178,2]
[327771650,1716468639757,-500.0,0.00019178,2]
[327771651,1716468639766,-500.0,0.00019178,2]
[327771652,1716468639775,-500.0,0.00019178,2]
[327771653,1716468639786,-500.0,0.00019178,2]
[327771654,1716468639796,-500.0,0.00019178,2]
[327771655,1716468639806,-500.0,0.00019178,2]
[327771656,1716468639816,-500.0,0.00019178,2]
[327771657,1716468639827,-500.0,0.00019178,2]
[327771658,1716468639836,-500.0,0.00019178,2]
[327771659,1716468639845,-500.0,0.00019178,2]
[327771660,1716468639855,-500.0,0.00019178,2]
[327771661,1716468639865,-500.0,0.00019178,2]
[327771662,1716468639874,-500.0,0.00019178,2]
[327771663,1716468639883,-500.0,0.00019178,2]
[327771664,1716468639892,-1107.52296556,0.00019178,2]